Cogmind - Beta 13 @@@ ROGUE MODE // 2024.03.02 @ 10:51:17 Player: Kaz Result: Destroyed by G-34 Mercenary with Small Laser Performance ------------- Evolutions (0) 0 Regions Visited (2) 400 Robots Destroyed (14) 70 Value Destroyed (389) 389 Prototype IDs (0) 0 Alien Tech Used (0) 0 Bonus (74) 74 TOTAL SCORE: 933 Bonus ------- Follower Combat Kills 74 Cogmind --------- Core Integrity 0/250 Matter 300/300 Energy 160/160 System Corruption 0% Temperature Cool (6) Movement Walking (190) Ox1 Location -10/Mines Parts ------- > --- POWER (1) -------- Light Nuclear Core > --- PROPULSION (2) --- Aluminum Leg Aluminum Leg > --- UTILITY (2) ------ Medium Storage Unit Core Shielding > --- WEAPON (2) ------- Particle Gun Makeshift Shrapnel Gun > --- INVENTORY (10) --- Small Storage Unit High-capacity Matter Pod (200) Reaction Control System Light Armor Plating Light Armor Plating Hardened Medium Armor Plating Improved Light Armor Plating Hardlight Generator Light Assault Rifle Light Assault Rifle Peak State ------------ > --- POWER ------------ Light Nuclear Core > --- PROPULSION ------- Aluminum Leg Aluminum Leg > --- UTILITY ---------- Medium Storage Unit Core Shielding > --- WEAPON ----------- Particle Gun Makeshift Shrapnel Gun > --- INVENTORY -------- Ion Engine Small Storage Unit High-capacity Matter Pod Reaction Control System Light Armor Plating Light Armor Plating Improved Light Armor Plating Mining Claw [Rating: 14] Favorites ----------- Power Light Nuclear Core Engine Ion Engine Power Core Light Nuclear Core Propulsion Aluminum Leg Leg Aluminum Leg Wheel Wheel Utility Core Shielding Storage Small Storage Unit Protection Core Shielding Weapon Particle Gun Energy Gun Particle Gun Ballistic Gun Makeshift Shrapnel Gun Slashing Weapon Mining Claw Build | -11 -10 -10 ------- Run | Yrd Mat Min Slots Evolved . | . . . Power . | . . . Propulsion . | . . . Utility . | . . . Weapon . | . . . Parts Attached 23 | 6 11 6 Power 3 | 1 1 1 Engine 2 | 1 1 . Core 1 | . . 1 Reactor . | . . . Propulsion 7 | 2 3 2 Treads . | . . . Leg 2 | . . 2 Wheel 5 | 2 3 . Hover . | . . . Flight . | . . . Utility 3 | 1 1 1 Device . | . . . Storage 2 | 1 . 1 Processor . | . . . Hackware . | . . . Protection 1 | . 1 . Artifact . | . . . Weapon 10 | 2 6 2 Energy Gun 7 | 2 4 1 Energy Cannon . | . . . Ballistic Gun 1 | . . 1 Ballistic Cannon . | . . . Launcher . | . . . Special Weapon . | . . . Impact Weapon . | . . . Slashing Weapon 2 | . 2 . Piercing Weapon . | . . . Special Melee Weapon . | . . . Unidentified Prototypes . | . . . Parts Lost 5 | . 3 2 Power 1 | . 1 . Propulsion 2 | . 1 1 Utility . | . . . Weapon 2 | . 1 1 Highest Loss Streak 3 | . 3 1 To Critical Strikes . | . . . Average Slot Usage (%) 92 | . 83 98 Engine 3 | . 8 . Core 7 | . . 13 Leg 13 | . . 23 Wheel 11 | . 21 3 Storage 14 | . 14 14 Protection 13 | . 11 14 Energy Gun 17 | . 20 15 Ballistic Gun 6 | . . 11 Slashing Weapon 2 | . 5 . Naked Turns . | . . . Heaviest Build 21 | 14 14 21 Greatest Support 26 | 26 26 26 Greatest Overweight (x) 2 | . 1 2 Average Overweight (x) . | . . . Largest Inventory Capacity 10 | 8 8 10 Average Capacity 8 | 7 8 9 Most Carried 10 | 2 7 10 Average Carried 6 | 1 3 8 Final Capacity 10 | 8 8 10 Final Carried 10 | 2 6 10 Class Distribution -------------------- 100% | Mutant Dominant Class ---------------- Mutant | -10/Materials Mutant | -10/Mines Resources | -11 -10 -10 ----------- Run | Yrd Mat Min Matter Collected 614 | 229 334 51 Remotely . | . . . Salvage Created 585 | . 513 72 Parts 28 | . 27 1 Haulers Intercepted 2 | . 2 . Recyclers Shooed 1 | . 1 . Parts Field Recycled . | . . . Retrieved Matter . | . . . Parts Self-Destructed . | . . . Prevented . | . . . Kills | -11 -10 -10 ------- Run | Yrd Mat Min Combat Hostiles Destroyed 10 | . 8 2 Melee 1 | . 1 . Guns 6 | . 5 1 AOE 1 | . 1 . Classes Destroyed 5 | . 4 1 Worker 1 | . 1 . Hauler 2 | . 2 . Watcher 1 | . 1 . Swarmer 1 | . . 1 Grunt 9 | . 8 1 Best Kill Streak 2 | . 2 1 Combat Bots Only 2 | . 2 1 Max Kills in Single Turn 1 | . 1 1 Gunslinging . | . . . Exploded 1 | . 1 . Melee 1 | . 1 . Uniques/NPCs Destroyed . | . . . Combat | -11 -10 -10 -------- Run | Yrd Mat Min Hostile Shots Fired 72 | . 54 18 Missed 19 | . 14 5 Damage Taken 759 | . 577 182 Core 252 | . 216 36 Absorbed by Shields . | . . . Redirected to Shielding 32 | . 24 8 Core Remaining (%) 100 | 100 . . Volleys Fired 68 | . 58 10 Largest 2 | . 2 2 Hottest 90 | . 90 90 Shots Fired 86 | . 74 12 Gun 86 | . 74 12 Cannon . | . . . Launcher . | . . . Special . | . . . Kinetic 1 | . . 1 Thermal 80 | . 69 11 Explosive . | . . . Electromagnetic 5 | . 5 . Robot Hit Streak 11 | . 11 3 Robot Miss Streak 4 | . 4 2 Penetration Max . | . . . Secondary Targets . | . . . Shots Hit Robots 61 | . 52 9 Core Hits 29 | . 24 5 Critical Kills . | . . . Critical Parts Destroyed . | . . . Critical Strikes 3 | . 2 1 Burn 3 | . 2 1 Melee Attacks 3 | . 3 . Impact . | . . . Slashing 3 | . 3 . Piercing . | . . . Sneak Attacks . | . . . Combat Hostiles . | . . . Follow-up Attacks . | . . . Damage Inflicted 820 | . 682 138 Guns 703 | . 585 118 Cannons . | . . . Explosions 39 | . 39 . Melee 46 | . 46 . Ramming 32 | . 12 20 Kinetic 15 | . . 15 Thermal 690 | . 587 103 Explosive . | . . . Electromagnetic 37 | . 37 . Impact . | . . . Slashing 46 | . 46 . Piercing . | . . . Highest Corruption . | . . . Average Corruption . | . . . Corruption Purged . | . . . Corruption Blocked . | . . . Overload Shots . | . . . Overflow Damage . | . . . Projectiles . | . . . Explosions . | . . . Melee . | . . . Knockbacks . | . . . Impact . | . . . Kinetic . | . . . Secondary . | . . . Self-Inflicted Damage 13 | . 13 . Shots 1 | . 1 . Rammed 3 | . 3 . Targets Rammed 8 | . 3 5 Kicked 5 | . . 5 Crushed . | . . . Highest Temperature 231 | . 231 45 Average Temperature 59 | . 66 24 Received Heat Transfer 426 | . 315 111 Siege Activations . | . . . Robots Corrupted . | . . . Combat Hostiles . | . . . Parts Fried . | . . . Impact Corruptions . | . . . Robots Melted 2 | . 1 1 Combat Hostiles 2 | . 1 1 Parts Melted 3 | . 2 1 Heat Transferred 2030 | . 1660 370 Parts Sabotaged . | . . . Parts Stolen . | . . . Parts Stripped . | . . . Power Chain Reactions 1 | . 1 . Alert | -11 -10 -10 ------- Run | Yrd Mat Min Peak Influence 174 | . 174 134 Initial 67 | . . 67 Average 67 | . 91 54 Maximum Alert Level . | . . . Low Security (%) 100 | 100 100 100 Level 1 . | . . . Level 2 . | . . . Level 3 . | . . . Level 4 . | . . . Level 5 . | . . . High Security . | . . . Max Security . | . . . Squads Dispatched 2 | . 1 1 Investigation 1 | . . 1 Extermination . | . . . Reinforcement 1 | . 1 . Assault . | . . . Garrison . | . . . Intercept . | . . . Searches Triggered . | . . . Construction Impeded . | . . . Haulers Reinforced . | . . . Active Scanning Responses . | . . . Cargo Convoy Interrupts . | . . . Stealth | -11 -10 -10 --------- Run | Yrd Mat Min Distress Signals 2 | . 2 . Communications Jammed . | . . . Distress Signals . | . . . Times Spotted 28 | . 19 9 Peak Tracking Total 4 | . 4 3 Tactical Retreats 2 | . 1 1 Traps | -11 -10 -10 ------- Run | Yrd Mat Min Traps Triggered 2 | . 2 . Indirectly . | . . . Trap Hack Attempts . | . . . Triggered . | . . . Disarmed . | . . . Reprogrammed . | . . . Reused . | . . . Traps Extracted . | . . . Installed . | . . . Triggered . | . . . Machines | -11 -10 -10 ---------- Run | Yrd Mat Min Machines Disabled . | . . . Max in Single Turn . | . . . Machines Repaired . | . . . Machines Dismantled . | . . . Machines Sabotaged . | . . . Overloaded Fab Kills . | . . . Hacking | -11 -10 -10 --------- Run | Yrd Mat Min Machines Accessed 3 | . 2 1 Terminals 2 | . 2 . Fabricators . | . . . Repair Stations . | . . . Recycling Units . | . . . Scanalyzers . | . . . Garrison Access . | . . . Total Hacks 7 | . 6 1 Successful 4 | . 3 1 Failed 3 | . 3 . Catastrophic 1 | . 1 . Database Lockouts . | . . . Manual . | . . . Terminals 6 | . 6 . Fabricators . | . . . Repair Stations . | . . . Recycling Units . | . . . Scanalyzers . | . . . Garrison Access . | . . . Terminal Hacks 4 | . 3 1 Open Door 1 | . . 1 Transport Status 1 | . 1 . Hauler Manifests 1 | . 1 . Registered Components 1 | . 1 . Fabricator Hacks . | . . . Repair Station Hacks . | . . . Recycling Unit Hacks . | . . . Scanalyzer . | . . . Garrison Access Hacks . | . . . Unauthorized Hacks . | . . . Terminals . | . . . Fabricators . | . . . Repair Stations . | . . . Recycling Units . | . . . Scanalyzers . | . . . Garrison Access . | . . . Data Cores Recovered . | . . . Used . | . . . Hacking Detections 2 | . 2 . Full Trace Events . | . . . Feedback Events . | . . . Feedback Blocked . | . . . Robot Schematics Acquired . | . . . Robots Built . | . . . Authchips . | . . . Time . | . . . Total Robot Build Rating . | . . . Part Schematics Acquired . | . . . Parts Built . | . . . Authchips . | . . . Time . | . . . Total Part Build Rating . | . . . Parts Repaired . | . . . Time . | . . . Parts Recycled . | . . . Recycled Matter . | . . . Retrieved Matter . | . . . Retrieved Components . | . . . Parts Scanalyzed . | . . . Part Schematics Acquired . | . . . Parts Damaged . | . . . Bothacking | -11 -10 -10 ------------ Run | Yrd Mat Min Used RIF Installer . | . . . Robots Hacked . | . . . Non-combat . | . . . Combat . | . . . Robot Hacks Applied . | . . . Relay Couplers Released . | . . . Fabnet Peak Effective % . | . . . Robots Rewired . | . . . Allies Hacked . | . . . Hacks Repelled . | . . . Allies | -11 -10 -10 -------- Run | Yrd Mat Min Total Allies 3 | . . 3 Largest Group 3 | . . 3 Highest-Rated Group 40 | . . 40 Highest-Rated Ally 16 | . . 16 Total Orders . | . . . Ally Attacks 16 | . . 16 Total Damage 160 | . . 160 Kills 4 | . . 4 Allies Corrupted . | . . . Allies Melted . | . . . Intel | -11 -10 -10 ------- Run | Yrd Mat Min Robot Analysis Total . | . . . Derelict Logs Recovered 1 | . . 1 Drone Launches . | . . . Drone Recoveries . | . . . Exploration | -11 -10 -10 ------------- Run | Yrd Mat Min Turns Passed 1901 | 64 773 1064 Spaces Moved 1272 | 61 614 597 Core 4 | 4 . . Treads . | . . . Legs 447 | . . 447 Wheels 821 | 57 614 150 Hover . | . . . Flight . | . . . Fastest Speed 50 | 50 90 90 Average Speed 127 | 87 95 165 Slowest Speed 190 | 90 100 190 Overloaded Moves . | . . . Propulsion Burnouts . | . . . Robots Hopped . | . . . Cave-ins Triggered . | . . . Exploration Rate (%) 63 | 5 92 93 Regions Visited 2 Branch Regions 1 Pre-discovered Areas . | . . . Known Exits Taken . | . . . Unknown Exits Taken 2 | 1 1 . Scrap Searched 2 | . . 2 Spaces Dug . | . . . Terrain Destroyed 2 | . 2 . Melee . | . . . Projectile . | . . . AOE 2 | . 2 . Terrain Rammed . | . . . Walls Destroyed . | . . . Machines Disabled . | . . . Actions | -11 -10 -10 --------- Run | Yrd Mat Min Total 1441 | 68 718 655 Wait 51 | . 24 27 Move 1270 | 60 613 597 Hop . | . . . Pick Up 13 | 2 5 6 Fast Attach 11 | 6 3 2 Attach 4 | . 3 1 Detach . | . . . Swap 8 | . 5 3 Drop 5 | . 1 4 Fire 68 | . 58 10 Melee 3 | . 3 . Ram 3 | . 3 . Kick 5 | . . 5 Crush . | . . . Escape Stasis . | . . . Rewire . | . . . Trap . | . . . Miscellaneous . | . . . Route ------- -11/Scrapyard -10/Materials (discovered 5 exits: [*Mat x3] / *Min x2) -10/Mines (discovered 2 exits: [*Mat x2]) History --------- Turn | Location | Event 12 | -11/Scrapyard | Discovered new exit (range 16) 65 | -11/Scrapyard | Entered Materials 65 | -10/Materials | Discovered new exit (range 14) 144 | -10/Materials | Discovered new exit (range 15) 208 | -10/Materials | Lost 3 parts (1p1n1w) 228 | -10/Materials | Discovered new exit (range 12) 311 | -10/Materials | Build established: Mutant 411 | -10/Materials | Core integrity fell below 50% 534 | -10/Materials | Discovered new exit (range 10) 579 | -10/Materials | Core integrity fell below 20% 656 | -10/Materials | Discovered new exit (range 11) 838 | -10/Materials | Entered Mines 838 | -10/Mines | Discovered new exit (range 14) 844 | -10/Mines | Assisted by bots powering up and referring to "LRC-V3" 990 | -10/Mines | A weapon hastily lodged in a ceiling crevice suddenly fell to the ground 1034 | -10/Mines | Discovered new exit (range 7) 1165 | -10/Mines | Received a Rocket Launcher from a helpful Derelict 1296 | -10/Mines | Learned Materials emergency access door positions 1347 | -10/Mines | Met a Derelict shopkeep closing up shop 1902 | -10/Mines | Destroyed by G-34 Mercenary with Small Laser Last Messages --------------- 01347_ K-01 Serf collects debris. 01349_ ALERT: Derelict activity detected in mines. Dispatching investigation squad. 01351_ 98-UXG(g): "You've got to be kidding me! I'm outta here..." 01358_ Acquired Imp. Light Armor Plating. 01359_ K-01 Serf cleans the SHOP.Sys. 01362_ Acquired Reaction Control System. 01365_ Acquired Hrd. Medium Armor Plating. 01368_ Acquired Hardlight Generator. 01466_ Kicked T-07 Excavator out of the way. 01529_ Kicked U-05 Engineer. 01601_ Kicked R-06 Scavenger out of the way. 01605_ Acquired 6 matter. 01607_ Kicked T-07 Excavator. 01789_ S-10 Pest destroyed. 01792_ Acquired 5 matter. 01797_ Dropped Ion Engine. 01798_ Acquired Lgt. Assault Rifle. 01799_ Dropped Mining Claw. 01803_ Acquired Lgt. Assault Rifle. Map ----- +----------------------------------------------------+ | | | ????????????????????????#####?????????? | | ????????????????????????# #?????????? | | ????????????????????????# ##????????? | | ????????????????????????# ##???????? | | ??????????????####???#### ##??????? | | ?????????????## ##### ##?????? | | ??????????#### ## #?####? | | ??????????# =% ### ## | | ??????????#=%*% #### | | ??????????#*/## ##??### # | | ??????????# ### ##?????# ## #### # | | ??????????# #?## #??????#% ## #??##### | | ??????????# #### #??????# ## ######## | | ??????????# #??????# % | | ??????????# ######??????# ########### | | ?????????## ##??????????# #?????????? | | ??######## #????????### ##??????### | | ??# ## ##??????## ##?????# | | ??# #??????# ####### | | ??# g #??????# < ## | | ??# ##### ######?## ## | | ??# ##???#g #??## ## ## | | ?## ##???# #### #???## ### | | ?# ##??# #?????????## ##?# | | ?# ##?# @#??????????####??# | | ?## #?# ???????????????# | | ??## #?# g?????????????## | | ???## ######## g ???????????## | | ????## #????? ??????#### | | ?????####### #??????####????## | | ???????????# #?????????????## | | ???????????# ?????????????# ### | | ???????????####????????????# ##?## | | ???????????????????????????## ##??## | | ????????????????????????????# #???## | | ????????????????????????????# #????? | | ????????????????????????????# #????? | | ????????????????????????????## ##???? | | ???????#####?????????????????## #???? | | ???????# ##?????????????##### #???? | | ???????# #????????????## ## ##???? | | ??????## #????????????# ##????? | | ????### ##???????????## #?????? | | ???## #????????????## ##?????? | | ???# #?????????????### #??????? | | ???# [ ##???????????????# #??????? | | ???# ## #????????????????# #??????? | | ???# ###%#??????????###???# ######## | | ???# #?#=#?????????## #??#[ % | +----------------------------------------------------+ Best States ------------- Heat Dissipation 25 Energy Generation 14 Energy Capacity 250 Matter Stores 300 Matter Capacity 300 Sight Range 16 Terrain Scan Density 10 Core Shielding 20 Evasion (%) 42 Item Schematics ----------------- None Robot Schematics ------------------ None Fabricated ------------ Nothing Alien Tech Used ----------------- None Achievements -------------- None Challenges ------------ None Game ------ Seed BottomlessLegInitializer Manual? 0 Play Time 00:18:25 Cumulative 134.2 hours Start 2024.03.02 @ 10:35:05 End 2024.03.02 @ 10:51:17 Sessions 1 Manual Loads 0 Difficulty Rogue Special Mode None Game No. 78 Rogue 66 Adventurer 12 Explorer 0 Win Type - Total 1 Types 1/0/0/0/0/0/0/0/0 Lore% 19 Gallery% 36 Achievement% 29 Wizard Run 0 Options --------- Layout 1 ASCII 0 Keyboard 0 Movement Mouse Keybinds 0 Fullscreen 1 Font 32/SmallcapsGlow Map View 77x35 Zoom Use 0% Tactical HUD 1 Map Filters NONE Filters NONE Steam 1 RUN: 85b9c893-8682-463c-a78f-eb328b17e494